bitfinex-derivatives/quotes_BTCF0:USTF0_20241003
["timestamp","ask_amount","ask_price","bid_price","bid_amount"]
[1727966208766,0.3608,60442.0,60441.0,0.082737]
[1727966209065,0.37554608,60442.0,60441.0,0.082737]
[1727966209566,0.37554608,60442.0,60432.0,0.082749]
[1727966209567,0.00248329,60443.0,60442.0,0.082736]
[1727966211360,0.09743869,60448.0,60446.0,0.08273]
[1727966211567,0.014,60442.0,60436.0,0.3608]
[1727966211871,0.014,60442.0,60441.0,0.082737]
[1727966212568,0.028,60443.0,60442.0,0.082736]
[1727966213068,0.44,60453.0,60438.0,0.00084]
[1727966213366,0.082729,60448.0,60447.0,0.082729]
[1727966214073,0.44,60459.0,60436.0,0.37574601]
[1727966214276,0.082718,60456.0,60455.0,0.082713]
[1727966214875,0.37599325,60460.0,60459.0,0.082713]
[1727966214876,0.45870525,60460.0,60459.0,0.082713]
[1727966215062,0.45870525,60460.0,60447.0,0.082729]
[1727966215063,0.082728,60448.0,60447.0,0.082729]
[1727966215466,0.082728,60448.0,60436.0,0.3608]
[1727966215467,0.082743,60437.0,60436.0,0.443543]
[1727966215770,0.082733,60444.0,60436.0,0.443543]
[1727966215771,0.082739,60441.0,60440.0,0.082739]
[1727966216073,0.29,60442.0,60436.0,0.3608]
[1727966216074,0.082742,60438.0,60437.0,0.082739]
[1727966216469,0.29,60442.0,60436.0,0.3608]
[1727966216661,0.082737,60441.0,60440.0,0.082737]
[1727966217268,0.0969,60452.0,60436.0,0.3608]
[1727966217269,0.01468189,60444.0,60436.0,0.3608]
[1727966217575,0.412521,60453.0,60452.0,0.082722]
[1727966217777,0.09790752,60453.0,60452.0,0.082722]
[1727966218368,0.09790752,60453.0,60437.0,0.082742]
[1727966218369,0.082717,60457.0,60453.0,0.082719]
[1727966218565,0.082717,60457.0,60456.0,0.082717]
[1727966218765,0.082717,60457.0,60450.0,0.082724]
[1727966218962,0.082724,60451.0,60450.0,0.082724]
[1727966220174,0.08272,60454.0,60447.0,0.082729]
[1727966220372,0.082735,60443.0,60442.0,0.082735]
[1727966220578,0.08273,60447.0,60446.0,0.082729]
[1727966220766,0.082726,60450.0,60449.0,0.082725]
[1727966220970,0.014,60451.0,60450.0,0.082725]
[1727966221676,0.014,60457.0,60456.0,0.082717]
[1727966221877,0.082699,60469.0,60456.0,0.89]
[1727966222067,0.082699,60469.0,60466.0,0.082702]
[1727966222068,0.082702,60467.0,60466.0,0.082702]
[1727966222272,0.082711,60461.0,60452.0,0.082721]
[1727966222473,0.082706,60465.0,60464.0,0.082705]
[1727966222979,0.082701,60468.0,60451.0,0.082722]
[1727966223178,0.29,60469.0,60451.0,0.082722]
[1727966223368,0.00248205,60470.0,60457.0,0.082715]
[1727966223369,0.082715,60458.0,60457.0,0.082715]
[1727966223769,0.082715,60457.0,60447.0,0.36328146]
[1727966223969,0.082725,60452.0,60447.0,0.00248146]
[1727966224182,0.733528,60448.0,60443.0,0.04927126]
[1727966224369,0.082736,60442.0,60434.0,0.04927126]
[1727966224570,0.29,60444.0,60439.0,0.082739]
[1727966224771,0.29,60444.0,60433.0,0.04927126]
[1727966224972,0.082744,60437.0,60436.0,0.082744]
[1727966225174,0.082747,60435.0,60432.0,0.04927126]
[1727966225473,0.29,60435.0,60429.0,0.04927126]
[1727966225673,0.082754,60429.0,60428.0,0.00248217]
[1727966226290,1.09644,60429.0,60422.0,0.04927126]
[1727966226575,0.082762,60423.0,60420.0,0.082766]
[1727966226776,0.082762,60423.0,60421.0,0.04927126]
[1727966226979,0.082765,60421.0,60420.0,0.06564276]
[1727966227183,0.29,60425.0,60409.0,0.3608]
[1727966227184,0.082766,60420.0,60419.0,0.06564276]
[1727966227375,0.082769,60418.0,60417.0,0.06546435]
[1727966227570,0.29,60420.0,60415.0,0.08221803]
[1727966227776,0.082773,60415.0,60413.0,0.08221803]
[1727966227975,0.38735537,60420.0,60413.0,0.08221803]
[1727966228279,0.38735537,60420.0,60417.0,0.08221803]
[1727966228280,0.01458937,60420.0,60417.0,0.08221803]
[1727966228584,0.082766,60421.0,60419.0,0.08221803]
[1727966228771,0.3608,60422.0,60417.0,0.08221803]
[1727966229080,0.003,60423.0,60418.0,0.12055689]
[1727966229283,0.003,60423.0,60416.0,0.29]
[1727966229284,0.009,60420.0,60419.0,0.20328767]
[1727966229484,0.091766,60420.0,60419.0,0.16459292]
[1727966229778,0.023,60420.0,60419.0,0.28499298]
[1727966229982,0.014,60420.0,60419.0,0.16459292]
[1727966230185,0.01,60422.0,60421.0,0.082765]
[1727966230380,0.01,60422.0,60421.0,0.20310013]
[1727966230779,0.01,60422.0,60421.0,0.56390013]
[1727966231492,0.29,60443.0,60421.0,0.56390013]
[1727966231493,0.443544,60436.0,60435.0,0.082745]
[1727966231878,0.37545167,60436.0,60435.0,0.082745]
[1727966232078,0.3608,60436.0,60435.0,0.372745]
[1727966232290,0.3608,60436.0,60435.0,0.082745]
[1727966232498,0.3698,60436.0,60435.0,0.083745]
[1727966232685,0.009,60436.0,60435.0,0.373745]
[1727966232985,0.009,60436.0,60435.0,1.5899766]
[1727966233184,0.023,60436.0,60435.0,1.5899766]
[1727966233386,0.023,60436.0,60435.0,0.2035766]
[1727966233584,0.023,60436.0,60435.0,0.28537453]
[1727966233786,0.023,60436.0,60435.0,0.28534058]
[1727966234085,0.023,60436.0,60435.0,1.180145]
[1727966234690,0.023,60436.0,60435.0,0.28528833]
[1727966234880,0.023,60436.0,60435.0,0.78169198]
[1727966235085,0.02,60436.0,60435.0,1.38169198]
[1727966235392,0.02,60436.0,60435.0,0.083745]
[1727966235779,0.463544,60436.0,60435.0,0.001]
[1727966235979,0.463544,60436.0,60429.0,0.08180101]
[1727966235980,0.082749,60433.0,60429.0,0.08180101]
[1727966236184,0.082756,60427.0,60426.0,0.16455901]
[1727966236394,0.082756,60427.0,60426.0,0.1198284]
[1727966236884,0.082756,60427.0,60424.0,0.09811677]
[1727966236885,0.49648,60427.0,60424.0,0.08176896]
[1727966237091,0.082759,60425.0,60424.0,0.08176896]
[1727966237285,0.082762,60423.0,60422.0,0.082762]
[1727966237487,0.082762,60423.0,60422.0,0.16455009]
[1727966237687,0.082762,60423.0,60422.0,0.082762]
[1727966237882,0.082762,60423.0,60415.0,0.45891677]
[1727966237883,0.082759,60426.0,60424.0,0.08276]
[1727966238081,0.082758,60426.0,60416.0,0.16455809]
[1727966238277,0.082758,60426.0,60425.0,0.082759]
[1727966238579,0.02178014,60433.0,60416.0,0.082771]
[1727966238580,0.005,60427.0,60416.0,0.082771]
[1727966238891,0.082769,60419.0,60418.0,0.082767]
[1727966239392,0.082769,60419.0,60415.0,0.3608]
[1727966239393,0.082771,60416.0,60415.0,0.443572]
[1727966239987,0.082767,60420.0,60415.0,0.3608]
[1727966240191,0.012,60419.0,60418.0,0.001]
[1727966240393,0.012,60419.0,60407.0,0.36164]
[1727966240394,0.082782,60408.0,60407.0,0.082782]
[1727966241286,0.082784,60407.0,60406.0,0.00248312]
[1727966241593,0.082784,60407.0,60406.0,0.20421574]
[1727966241797,0.082784,60407.0,60406.0,0.00248312]
[1727966242092,0.082784,60409.0,60408.0,0.082782]
[1727966242295,0.082784,60407.0,60406.0,0.08526812]
[1727966242686,0.009,60416.0,60406.0,0.00248312]
[1727966242899,0.082776,60413.0,60412.0,0.082775]
[1727966243492,0.082771,60417.0,60416.0,0.082771]
[1727966243692,0.45845094,60419.0,60418.0,0.082769]
[1727966243895,0.09765094,60419.0,60418.0,0.082769]
[1727966244297,0.082775,60414.0,60413.0,0.082774]
[1727966245002,0.082774,60415.0,60414.0,0.082774]
[1727966245190,0.009,60413.0,60412.0,0.083777]
[1727966245799,0.017,60414.0,60413.0,0.083776]
[1727966246297,0.01,60414.0,60413.0,0.444576]
[1727966246491,0.01475134,60424.0,60423.0,0.082762]
[1727966246684,0.082756,60427.0,60426.0,0.082758]
[1727966246884,0.082754,60429.0,60428.0,0.082754]
[1727966247093,0.37848039,60430.0,60429.0,0.082754]
[1727966247294,0.01768039,60430.0,60429.0,0.082754]
[1727966247495,0.00248362,60430.0,60429.0,0.082754]
[1727966248288,0.08521085,60448.0,60429.0,1.53644]
[1727966248491,0.082735,60443.0,60429.0,0.44]
[1727966248800,0.08274,60439.0,60438.0,0.082739]
[1727966248988,0.1002944,60448.0,60429.0,0.523753]
[1727966248989,0.0175664,60448.0,60429.0,0.523753]
[1727966249189,0.082734,60444.0,60443.0,0.082731]
[1727966249594,0.08273,60447.0,60445.0,0.08273]
[1727966249595,0.082731,60446.0,60445.0,0.08273]
[1727966249806,0.08273,60447.0,60446.0,0.08273]
[1727966250103,0.00248285,60448.0,60440.0,0.44]
[1727966250400,0.00248285,60448.0,60447.0,0.082729]
[1727966250590,0.08521085,60448.0,60447.0,0.082729]
[1727966251402,0.082733,60445.0,60444.0,0.082732]
[1727966252005,0.00248285,60448.0,60447.0,0.082729]
[1727966252195,0.00248285,60448.0,60447.0,0.083729]
[1727966252196,0.00948285,60448.0,60447.0,0.083729]
[1727966252507,0.00948285,60448.0,60447.0,0.084729]
[1727966252508,0.02348285,60448.0,60447.0,0.084729]
[1727966252999,0.02348285,60448.0,60447.0,0.083729]
[1727966253000,0.00948285,60448.0,60447.0,0.083729]
[1727966253202,0.007,60448.0,60447.0,0.083729]
[1727966253408,0.089728,60448.0,60447.0,0.083729]
[1727966253606,0.541728,60448.0,60447.0,0.002]
[1727966253796,1.031008,60448.0,60447.0,0.001]
[1727966254309,1.031008,60448.0,60424.0,0.684]
[1727966254310,1.052,60448.0,60431.0,0.0151167]
[1727966254602,0.08275,60432.0,60431.0,0.0151167]
[1727966254805,0.44355,60432.0,60431.0,0.0151167]
[1727966255109,0.44355,60432.0,60431.0,0.082751]
[1727966255302,0.3608,60437.0,60425.0,0.3608]
[1727966255501,0.082745,60436.0,60435.0,0.082744]
[1727966256007,0.08275,60432.0,60431.0,0.001]
[1727966256606,0.014,60432.0,60431.0,0.002]
[1727966256802,0.014,60432.0,60431.0,0.084751]
[1727966257105,0.014,60432.0,60431.0,0.083751]
[1727966257301,0.021,60432.0,60431.0,0.084751]
[1727966257899,0.09675,60432.0,60431.0,0.083751]
[1727966258107,0.10375,60432.0,60431.0,0.084751]
[1727966258306,0.08975,60432.0,60431.0,0.001]
[1727966258513,0.10375,60432.0,60431.0,0.002]
[1727966258809,0.10475,60432.0,60431.0,0.002]
[1727966260001,0.96199,60432.0,60431.0,0.002]
[1727966260205,0.082767,60420.0,60419.0,0.082766]
[1727966260510,0.29,60427.0,60414.0,0.00248282]
[1727966260703,0.082772,60417.0,60416.0,0.082771]
[1727966261005,0.082773,60415.0,60414.0,0.00248282]
[1727966262100,0.005,60420.0,60419.0,0.082767]
[1727966263311,0.082764,60423.0,60419.0,1.09652]
[1727966263499,0.082764,60423.0,60422.0,0.082762]
[1727966264005,0.082769,60418.0,60417.0,0.082769]
[1727966264396,0.082773,60415.0,60414.0,0.08625682]
[1727966264596,0.082773,60415.0,60414.0,0.00248282]
[1727966265698,0.09377,60418.0,60417.0,0.08277]
[1727966265899,0.009,60423.0,60421.0,0.082763]
[1727966266098,0.009,60423.0,60414.0,0.00348282]
[1727966266099,0.009,60423.0,60422.0,0.082763]
[1727966266501,0.009,60423.0,60414.0,0.00348282]
[1727966266701,0.08277,60418.0,60417.0,0.082768]
[1727966267712,0.08276,60425.0,60414.0,0.00348282]
[1727966267910,0.08276,60425.0,60414.0,0.08725682]
[1727966267911,0.008,60415.0,60414.0,0.08725682]
[1727966268212,0.008,60415.0,60414.0,0.08625682]
[1727966268713,0.090769,60418.0,60417.0,0.08377]
[1727966269411,0.007,60415.0,60414.0,0.08725682]
[1727966269711,0.089773,60415.0,60414.0,0.08725682]
[1727966270011,0.089773,60415.0,60414.0,0.00448282]
[1727966270810,0.10832782,60415.0,60414.0,0.00448282]
[1727966271012,0.10132782,60415.0,60414.0,0.00248282]
[1727966271810,0.11232782,60415.0,60414.0,0.00348282]
[1727966272112,0.48112782,60415.0,60414.0,0.00448282]
[1727966272532,0.48112782,60415.0,60414.0,0.002]
[1727966272698,0.082791,60403.0,60402.0,0.08279]
[1727966273002,0.372791,60403.0,60390.0,0.36168]
[1727966273310,0.082806,60391.0,60390.0,0.443606]
[1727966273811,0.082806,60391.0,60390.0,0.3608]
[1727966274003,0.082807,60390.0,60389.0,0.00248383]
[1727966274603,0.30901324,60393.0,60373.0,0.4502]
[1727966274806,0.29,60389.0,60377.0,0.082824]
[1727966275005,0.082812,60387.0,60386.0,0.082811]
[1727966275207,0.29,60389.0,60378.0,0.082823]
[1727966275415,0.082806,60391.0,60390.0,0.082806]
[1727966275710,0.00088,60392.0,60389.0,0.012]
[1727966275913,0.10138708,60396.0,60389.0,0.012]
[1727966276309,0.082793,60401.0,60400.0,0.082792]
[1727966276915,0.01891554,60404.0,60402.0,0.082791]
[1727966277510,0.3608,60407.0,60402.0,0.082791]
[1727966277817,0.3608,60407.0,60406.0,0.082785]
[1727966278314,0.3608,60407.0,60400.0,0.01824165]
[1727966278315,0.3608,60410.0,60409.0,0.082781]
[1727966278513,0.082776,60413.0,60412.0,0.082777]
[1727966278905,0.082776,60413.0,60396.0,0.3608]
[1727966278906,0.082778,60412.0,60396.0,0.3608]
[1727966279108,0.014,60403.0,60396.0,0.3608]
[1727966279315,0.014,60403.0,60402.0,0.082791]
[1727966279817,0.304,60403.0,60382.0,0.082817]
[1727966280007,0.3728,60395.0,60381.0,0.082819]
[1727966280208,0.29,60400.0,60382.0,0.29]
[1727966280507,0.014,60403.0,60402.0,0.082791]
[1727966281119,0.3608,60413.0,60402.0,0.082791]
[1727966281310,0.29,60410.0,60403.0,0.082788]
[1727966281505,0.082797,60397.0,60396.0,0.001]
[1727966281706,0.6508,60397.0,60383.0,0.00248408]
[1727966281909,0.082815,60384.0,60383.0,0.00248408]
[1727966283419,0.10132861,60384.0,60383.0,0.00248408]
[1727966284015,0.10232861,60384.0,60383.0,0.00248408]
[1727966284424,0.082828,60375.0,60374.0,0.082829]
[1727966284616,1.11635361,60384.0,60370.0,0.3608]
[1727966284617,0.082827,60376.0,60370.0,0.3608]
[1727966284817,0.082827,60376.0,60375.0,0.082828]
[1727966285520,0.29,60382.0,60370.0,0.3608]
[1727966285821,0.001,60376.0,60375.0,0.082828]
[1727966286123,0.001,60376.0,60367.0,0.3608]
[1727966286124,0.08283,60373.0,60367.0,0.3608]
[1727966286327,0.08283,60373.0,60372.0,0.443631]
[1727966286624,0.082808,60390.0,60385.0,0.082814]
[1727966286813,0.3608,60395.0,60385.0,0.082814]
[1727966286814,0.082805,60392.0,60385.0,0.082814]
[1727966287016,0.01904376,60389.0,60385.0,0.082814]
[1727966287539,0.443601,60395.0,60385.0,0.082814]
[1727966287712,0.01834561,60396.0,60385.0,1.8976]
[1727966287909,0.01834561,60396.0,60395.0,0.0828]
[1727966288115,0.0183996,60406.0,60398.0,0.082796]
[1727966288321,0.0183996,60406.0,60395.0,0.8836]
[1727966288322,0.0183996,60406.0,60395.0,0.88444]
[1727966288629,0.082784,60407.0,60405.0,0.082787]
[1727966288925,0.08278,60410.0,60395.0,0.8008]
[1727966289122,0.08278,60410.0,60395.0,0.4436]
[1727966289123,0.027,60396.0,60395.0,0.4436]
[1727966289321,0.027,60396.0,60395.0,0.94032]
[1727966289920,0.014,60396.0,60395.0,0.4436]
[1727966290429,0.082803,60394.0,60385.0,0.36164]
[1727966290720,0.44,60400.0,60385.0,0.8008]
[1727966290721,0.082795,60400.0,60385.0,0.8008]
[1727966290919,0.082797,60398.0,60397.0,0.082797]
[1727966291124,0.01881849,60402.0,60385.0,0.81983818]
[1727966291125,0.082802,60394.0,60392.0,0.082803]
[1727966291315,0.082802,60394.0,60385.0,0.3608]
[1727966291316,0.44,60394.0,60385.0,0.3608]
[1727966291623,0.082807,60390.0,60389.0,0.082806]
[1727966291825,0.008,60396.0,60395.0,0.0828]
[1727966291826,0.082799,60396.0,60395.0,0.0828]
[1727966292012,0.007,60396.0,60395.0,0.0828]
[1727966292613,0.007,60396.0,60395.0,0.57952]
[1727966292813,0.3608,60409.0,60408.0,0.082782]
[1727966293115,0.443581,60409.0,60408.0,0.082782]
[1727966293319,0.47556581,60409.0,60408.0,0.082782]
[1727966293712,0.082777,60413.0,60412.0,0.082777]
[1727966293916,0.0319838,60413.0,60412.0,0.082777]
[1727966294127,0.01823853,60416.0,60406.0,0.44]
[1727966294320,0.03198175,60415.0,60414.0,0.082774]
[1727966294717,0.014,60413.0,60406.0,0.44]
[1727966294923,0.014,60413.0,60412.0,0.443577]
[1727966295427,0.01825342,60422.0,60421.0,0.082765]
[1727966295630,0.00248383,60423.0,60422.0,0.082763]
[1727966296117,0.13117996,60436.0,60422.0,1.619283]
[1727966296316,0.082744,60436.0,60435.0,0.082745]
[1727966296635,0.03197225,60436.0,60435.0,0.082745]
[1727966297519,0.0319694,60436.0,60435.0,0.082745]
[1727966297822,0.014,60436.0,60435.0,0.082745]
[1727966298428,0.028,60436.0,60435.0,0.082745]
[1727966299131,0.014,60436.0,60435.0,0.082745]
[1727966299326,0.028,60436.0,60435.0,0.082745]
[1727966300420,0.02448383,60436.0,60435.0,1.539945]
[1727966300628,8.3e-07,60436.0,60435.0,1.539945]
[1727966300838,8.3e-07,60436.0,60435.0,1.979945]
[1727966301022,0.3608,60472.0,60471.0,0.082696]
[1727966301223,0.082695,60472.0,60470.0,0.082697]
[1727966301521,0.01902333,60472.0,60471.0,0.082696]
[1727966301722,0.44248149,60485.0,60464.0,0.44]
[1727966301926,0.00248149,60485.0,60475.0,0.8008]
[1727966302423,0.44,60484.0,60475.0,0.3608]
[1727966302727,0.00248149,60485.0,60480.0,0.082683]
[1727966302934,0.00248149,60485.0,60483.0,0.082679]
[1727966303232,0.44,60484.0,60468.0,0.3608]
[1727966303419,0.014,60472.0,60470.0,0.001]
[1727966303622,0.014,60472.0,60471.0,0.082696]
[1727966304022,0.082681,60483.0,60478.0,0.082686]
[1727966304228,0.01877782,60483.0,60468.0,0.3608]
[1727966304428,0.00548149,60485.0,60473.0,0.082692]
[1727966304627,0.00548149,60485.0,60468.0,0.3608]
[1727966304628,0.001,60472.0,60468.0,0.3608]
[1727966304831,0.001,60472.0,60471.0,0.082696]
[1727966305331,0.002,60483.0,60472.0,0.082694]
[1727966305530,0.082692,60475.0,60472.0,0.082694]
[1727966306230,0.082694,60473.0,60469.0,0.082699]
[1727966306430,0.082692,60475.0,60470.0,0.082697]
[1727966306629,0.08668,60483.0,60472.0,0.001]
[1727966306838,0.082693,60473.0,60472.0,0.001]
[1727966307630,0.3608,60486.0,60471.0,0.441]
[1727966307834,0.3608,60486.0,60476.0,0.44]
[1727966307835,0.082683,60481.0,60476.0,0.44]
[1727966308131,0.009,60483.0,60482.0,0.082681]
[1727966308433,0.443476,60486.0,60473.0,0.082693]
[1727966308434,0.10412702,60485.0,60484.0,0.082678]
[1727966308644,0.02144902,60485.0,60484.0,0.082678]
[1727966308936,0.082681,60482.0,60481.0,0.082682]
[1727966309134,0.082685,60479.0,60477.0,0.082688]
[1727966309923,0.02144902,60485.0,60481.0,0.001]
[1727966310132,0.082681,60482.0,60481.0,0.001]
[1727966310536,0.578681,60482.0,60481.0,0.001]
[1727966310739,0.082687,60478.0,60477.0,0.002]
[1727966311139,0.082703,60466.0,60465.0,0.00248072]
[1727966312045,0.10163351,60466.0,60465.0,0.00248072]
[1727966312332,0.10163351,60466.0,60455.0,0.3608]
[1727966312333,0.082715,60457.0,60456.0,0.082716]
[1727966312535,0.082717,60456.0,60453.0,0.08272]
[1727966312729,0.082716,60457.0,60454.0,0.082719]
[1727966313326,0.3608,60463.0,60448.0,0.44]
[1727966313530,0.082726,60449.0,60447.0,0.443529]
[1727966313830,0.082704,60465.0,60448.0,0.8008]
[1727966314031,0.02093051,60466.0,60461.0,0.44]
[1727966314234,0.002,60466.0,60465.0,0.082704]
[1727966314436,0.082707,60464.0,60463.0,0.082707]
[1727966314837,0.082702,60467.0,60461.0,0.44]
[1727966315032,0.00092,60472.0,60471.0,0.082696]
[1727966315234,0.3608,60480.0,60471.0,0.082695]
[1727966315437,0.3608,60480.0,60466.0,0.44]
[1727966315637,0.082685,60479.0,60471.0,0.082696]
[1727966315834,0.082692,60475.0,60471.0,0.082696]
[1727966316035,0.082685,60479.0,60471.0,0.082696]
[1727966316438,0.082685,60479.0,60471.0,0.083696]
[1727966316740,0.38380299,60480.0,60471.0,0.001]
[1727966316741,0.082695,60472.0,60471.0,0.001]
[1727966317137,0.08271,60461.0,60460.0,0.3608]
[1727966317332,0.08271,60461.0,60460.0,0.443511]
[1727966317551,0.08271,60461.0,60460.0,0.082711]
[1727966317735,0.0827,60469.0,60456.0,0.082716]
[1727966317736,0.082715,60457.0,60456.0,0.082716]
[1727966317940,0.082704,60466.0,60453.0,0.082721]
[1727966317941,0.082719,60454.0,60453.0,0.082721]
[1727966318443,0.01888499,60459.0,60458.0,0.082713]
[1727966318644,0.008,60461.0,60460.0,0.083711]
[1727966319235,0.09071,60461.0,60460.0,0.083711]
[1727966319742,0.09071,60461.0,60460.0,0.001]
[1727966320145,0.003,60461.0,60460.0,0.001]
[1727966320336,0.003,60461.0,60460.0,0.083711]
[1727966320742,0.017,60461.0,60460.0,0.084711]
[1727966322845,0.015,60461.0,60460.0,1.541711]
[1727966323044,0.017,60461.0,60460.0,1.541711]
[1727966324544,0.017,60461.0,60460.0,0.444511]
[1727966324545,0.003,60461.0,60460.0,0.444511]
[1727966324741,0.012,60461.0,60460.0,0.445511]
[1727966325950,0.012,60461.0,60460.0,1.541711]
[1727966326352,0.008,60461.0,60460.0,1.540711]
[1727966326948,0.012,60461.0,60460.0,1.541711]
[1727966327251,0.012,60461.0,60460.0,1.540711]
[1727966327647,0.082687,60478.0,60460.0,1.901511]
[1727966327848,0.443483,60481.0,60480.0,0.082684]
[1727966328150,0.15513294,60481.0,60480.0,0.522684]
[1727966328353,0.15513294,60481.0,60480.0,0.082684]
[1727966328650,0.20589681,60481.0,60480.0,0.082684]
[1727966329751,0.08269,60478.0,60477.0,0.082688]
[1727966330251,0.28793497,60480.0,60472.0,0.3608]
[1727966330252,0.12321519,60479.0,60472.0,0.3608]
[1727966330549,0.01819295,60483.0,60472.0,0.3608]
[1727966330550,0.27145918,60478.0,60477.0,0.082688]
[1727966330850,0.12321519,60478.0,60477.0,0.082688]
[1727966331050,0.14838302,60478.0,60477.0,0.082688]
[1727966331354,0.23107002,60478.0,60477.0,0.083688]
[1727966331541,0.15513633,60478.0,60477.0,0.083688]
[1727966331748,0.20590219,60478.0,60477.0,0.083688]
[1727966332451,0.20590219,60478.0,60477.0,0.084688]
[1727966332939,0.12321519,60478.0,60477.0,0.084688]
[1727966333744,0.23107001,60478.0,60477.0,0.083688]
[1727966333945,0.21089812,60478.0,60477.0,0.084688]
[1727966334648,0.35927494,60478.0,60477.0,0.084688]
[1727966334852,0.40078498,60478.0,60477.0,0.002]
[1727966335041,0.40078498,60478.0,60472.0,0.3608]
[1727966335042,1.48737968,60478.0,60472.0,0.3608]
[1727966335245,0.082693,60473.0,60472.0,0.3608]
[1727966335552,0.20590446,60473.0,60472.0,0.3608]
[1727966335757,0.37078547,60473.0,60472.0,0.3608]
[1727966335956,0.37078547,60473.0,60460.0,1.12732095]
[1727966335957,0.082702,60468.0,60467.0,0.082701]
[1727966336148,0.11464984,60468.0,60467.0,0.082701]
[1727966337843,0.11764984,60468.0,60467.0,0.082701]
[1727966339256,0.11964984,60468.0,60467.0,0.082701]
[1727966339447,0.12364984,60468.0,60467.0,0.083701]
[1727966340071,0.12364984,60468.0,60467.0,0.001]
[1727966340243,0.16415791,60468.0,60467.0,0.001]
[1727966340449,0.16415791,60468.0,60467.0,0.083702]
[1727966340648,0.08145591,60468.0,60467.0,0.083702]
[1727966341262,0.04095264,60468.0,60467.0,0.083702]
[1727966342155,0.0409522,60468.0,60467.0,0.083702]
[1727966342361,0.14840023,60478.0,60467.0,1.09712]
[1727966342362,0.13196442,60478.0,60467.0,1.09712]
[1727966342547,0.24755901,60485.0,60467.0,1.09712]
[1727966342548,0.03194767,60477.0,60476.0,0.082689]
[1727966342862,0.03194767,60477.0,60476.0,0.733489]
[1727966343160,0.04049696,60477.0,60476.0,0.733489]
[1727966343454,0.08099405,60477.0,60476.0,0.733489]
[1727966343654,0.11294172,60477.0,60476.0,0.733489]
[1727966343954,0.18889719,60477.0,60476.0,0.733489]
[1727966344160,0.27158519,60477.0,60476.0,0.082689]
[1727966344344,0.16370128,60477.0,60476.0,0.082689]
[1727966344545,0.24638928,60477.0,60476.0,0.082689]
[1727966344846,0.4328305,60477.0,60476.0,0.001]
[1727966345048,0.082705,60466.0,60461.0,0.3232]
[1727966345248,0.082708,60462.0,60461.0,0.405909]
[1727966345453,0.082708,60462.0,60461.0,0.3232]
[1727966345454,0.28194078,60462.0,60461.0,0.3232]
[1727966345663,2.77874296,60462.0,60444.0,0.36164]
[1727966345849,0.14849818,60448.0,60447.0,0.082729]
[1727966346047,0.20593232,60448.0,60447.0,0.082729]
[1727966346255,0.082732,60445.0,60444.0,0.3608]
[1727966346455,0.23124312,60445.0,60444.0,0.443533]
[1727966346651,0.27171544,60445.0,60444.0,0.443533]
[1727966346857,0.12320432,60445.0,60444.0,0.443533]
[1727966347056,0.27161618,60445.0,60444.0,0.443533]
[1727966347257,0.14841186,60445.0,60444.0,0.443533]
[1727966347580,0.05934653,60459.0,60444.0,0.443533]
[1727966347581,0.14841186,60451.0,60444.0,1.549853]
[1727966347759,0.14841186,60456.0,60451.0,0.29]
[1727966347953,0.14841186,60460.0,60459.0,0.082713]
[1727966348259,0.14841186,60462.0,60461.0,0.08271]
[1727966348449,0.05077487,60462.0,60461.0,0.08271]
[1727966348763,0.05077399,60462.0,60458.0,0.29]
[1727966349059,0.14833687,60468.0,60463.0,0.082707]
[1727966349260,0.14833687,60472.0,60471.0,0.082696]
[1727966349458,0.19909357,60472.0,60468.0,0.29]
[1727966349657,0.14832743,60473.0,60472.0,0.082695]
[1727966349851,0.14832743,60474.0,60472.0,0.29]
[1727966350159,0.14832743,60474.0,60473.0,0.082693]
[1727966350360,0.14832743,60476.0,60473.0,0.3608]
[1727966350661,0.08035681,60485.0,60484.0,0.082678]
[1727966350963,0.0821,60507.0,60506.0,0.082648]
[1727966351552,0.082649,60506.0,60503.0,0.29]
[1727966351752,0.0821,60507.0,60500.0,0.3608]
[1727966351954,0.082655,60501.0,60493.0,0.3608]
[1727966352258,0.082655,60501.0,60490.0,0.08267]
[1727966352259,0.082665,60494.0,60490.0,0.08267]
[1727966352461,0.082655,60501.0,60490.0,0.29]
[1727966352662,0.3608,60503.0,60490.0,0.29]
[1727966352962,0.082654,60502.0,60495.0,0.29]
[1727966353156,0.3608,60503.0,60502.0,0.082654]
[1727966353458,0.443452,60503.0,60502.0,0.082654]
[1727966353662,0.3608,60503.0,60493.0,0.001]
[1727966353860,0.3608,60503.0,60482.0,0.082681]
[1727966353861,0.082657,60500.0,60497.0,0.082659]
[1727966354062,0.3608,60503.0,60486.0,0.01855969]
[1727966354261,0.082662,60496.0,60495.0,0.001]
[1727966354455,0.082673,60488.0,60485.0,0.082677]
[1727966354658,0.082673,60488.0,60486.0,0.082675]
[1727966354959,0.082663,60496.0,60481.0,0.29248008]
[1727966355259,0.01880062,60500.0,60491.0,0.29]
[1727966355456,0.082656,60501.0,60499.0,0.082657]
[1727966355657,0.3618,60503.0,60502.0,0.082654]
[1727966355658,0.001,60503.0,60502.0,0.082654]
[1727966356162,0.001,60503.0,60502.0,0.372654]
[1727966356566,0.001,60503.0,60502.0,0.082654]
[1727966356865,0.083652,60503.0,60502.0,0.082654]
[1727966357054,0.082652,60503.0,60502.0,0.082654]
[1727966357249,0.082651,60504.0,60503.0,0.082652]
[1727966357456,0.082636,60515.0,60501.0,0.3608]
[1727966357666,0.0822,60518.0,60514.0,0.082637]
[1727966357855,0.082632,60518.0,60515.0,0.082636]
[1727966358165,0.48394395,60516.0,60515.0,0.082636]